fUST/lending_fUST_20250605
["ID","MTS","AMOUNT","RATE_DAILY","PERIOD"]
[364408596,1749093049953,-809.44427923,0.00021527,2]
[364408598,1749093049962,-1311.49,0.00021527,2]
[364408600,1749093049972,-1897.17,0.00021527,2]
[364408602,1749093049981,-250.65846504,0.00021553,2]
[364408604,1749093049992,-750.36439725,0.00021553,2]
[364408606,1749093050003,-1000.0,0.00021553,2]
[364408608,1749093050012,-160.0,0.00021591,3]
[364408610,1749093050022,-225.51928788,0.00021648,2]
[364408612,1749093050032,-1000.0,0.00021648,2]
[364408614,1749093050041,-151.0,0.00021659,2]
[364408616,1749093050051,-104.26015665,0.00021659,2]
[364408618,1749093050065,-47.43925535,0.00021659,2]
[364408620,1749093050074,-151.0,0.00021659,2]
[364408622,1749093050083,-151.0,0.00021659,2]
[364408625,1749093050094,-1000.0,0.00021659,2]
[364408626,1749093050105,-1000.0,0.00021659,2]
[364408629,1749093050115,-642.76951285,0.00021762,5]
[364408637,1749093050295,-500.0,0.00017418,2]
[364408638,1749093050305,-574.51246804,0.00017418,2]
[364408639,1749093050315,-1584.37,0.00019873,2]
[364408640,1749093050324,-1584.37,0.00020147,2]
[364408641,1749093050334,-1584.37,0.00020421,2]
[364408642,1749093050343,-1584.37,0.00020695,2]
[364408643,1749093050353,-1584.37,0.00020969,2]
[364408644,1749093050362,-1584.37,0.00021243,2]
[364408645,1749093050372,-1272.43279455,0.00021762,5]
[364408646,1749093050382,-1030.4,0.00021791,2]
[364408647,1749093050391,-1134.6,0.00021791,2]
[364408648,1749093050400,-904.68,0.00021791,2]
[364408649,1749093050411,-1438.38,0.00021799,2]
[364408650,1749093050420,-440.0,0.00021799,2]
[364408651,1749093050429,-581.05,0.00021799,2]
[364408652,1749093050438,-656.45,0.00021799,2]
[364408653,1749093050447,-440.0,0.000218,2]
[364408654,1749093050456,-1000.0,0.000218,7]
[364408655,1749093050464,-400.0,0.00021801,2]
[364408656,1749093050473,-576.87,0.00021801,2]
[364408657,1749093050486,-178.15023976,0.00021801,2]
[364408658,1749093050502,-646.30976024,0.00021801,2]
[364408659,1749093050512,-272.76674321,0.00021801,2]
[364408660,1749093050659,-1584.37,0.00021517,2]
[364408661,1749093050669,-151.0,0.00021659,2]
[364408662,1749093050678,-1584.37,0.00021791,2]
[364408663,1749093050688,-461.45325679,0.00021801,2]
[364408664,1749093050698,-554.01,0.00021801,2]
[364408665,1749093050708,-458.65,0.00021801,2]
[364408666,1749093050718,-868.47,0.00021801,2]
[364408667,1749093050727,-1311.49,0.00021801,2]
[364408668,1749093050737,-1489.43492667,0.00021801,2]
[364408669,1749093050749,-407.73507333,0.00021801,2]
[364408670,1749093050759,-5000.0,0.0002186,2]
[364408671,1749093050768,-972.13326217,0.00021889,2]
[364408672,1749093050779,-622.82533592,0.00021889,2]
[364408673,1749093050788,-1000.0,0.00021889,2]
[364408674,1749093050797,-1000.0,0.00021889,2]
[364408675,1749093050807,-1001.36296399,0.00021889,2]
[364408676,1749093050817,-503.38430584,0.00021889,2]
[364408677,1749093050826,-501.34259505,0.00021889,2]
[364408678,1749093050836,-1000.0,0.00021889,2]
[364408679,1749093050845,-1089.81870008,0.00021889,2]
[364408680,1749093050855,-501.3996211,0.00021889,2]
[364408681,1749093050864,-1000.0,0.00021889,2]
[364408682,1749093050873,-500.0,0.00021917,2]
[364408683,1749093050883,-500.0,0.00021917,2]
[364408684,1749093050894,-500.0,0.00021917,2]
[364408685,1749093050905,-500.0,0.00021917,2]
[364408686,1749093050915,-500.0,0.00021917,2]
[364408687,1749093050924,-500.0,0.00021917,2]
[364408688,1749093050934,-500.0,0.00021917,2]
[364408689,1749093050944,-500.0,0.00021917,2]
[364408690,1749093050953,-500.0,0.00021917,2]
[364408692,1749093050963,-500.0,0.00021917,2]
[364408694,1749093050972,-500.0,0.00021917,2]
[364408695,1749093050981,-509.17556895,0.00021917,2]
[364408697,1749093050992,-26299.1389637,0.00021918,2]
[364408711,1749093051139,-615.34,0.0001999,3]
[364408712,1749093051150,-200.0,0.00021917,2]
[364408714,1749093051160,-672.35041136,0.00021918,2]
[364408716,1749093051171,-41052.49128626,0.00021918,2]
[364408718,1749093051180,-151.755329,0.00021918,7]
[364408720,1749093051190,-167.078038,0.00021918,7]
[364408722,1749093051199,-258.20289,0.00021918,7]
[364408724,1749093051210,-167.078038,0.00021918,7]
[364408726,1749093051219,-151.0,0.00021918,2]
[364408728,1749093051228,-329.162636,0.00021918,7]
[364408729,1749093051239,-329.162636,0.00021918,7]
[364408731,1749093051248,-163.724684,0.00021918,7]
[364408733,1749093051257,-500.0,0.00021918,2]
[364408735,1749093051266,-500.0,0.00021918,2]
[364408736,1749093051275,-500.0,0.00021918,2]
[364408738,1749093051285,-500.0,0.00021918,2]
[364408740,1749093051294,-500.0,0.00021918,2]
[364408742,1749093051304,-500.0,0.00021918,2]
[364408744,1749093051314,-500.0,0.00021918,2]
[364408745,1749093051323,-500.0,0.00021918,2]
[364408747,1749093051333,-500.0,0.00021918,2]
[364408749,1749093051342,-500.0,0.00021918,2]
[364408751,1749093051352,-500.0,0.00021918,2]
[364408753,1749093051361,-500.0,0.00021918,2]
[364408755,1749093051370,-500.0,0.00021918,2]
[364408757,1749093051386,-500.0,0.00021918,2]
[364408758,1749093051397,-500.0,0.00021918,2]
[364408760,1749093051407,-500.0,0.00021918,2]
[364408762,1749093051416,-500.0,0.00021918,2]
[364408764,1749093051426,-500.0,0.00021918,2]
[364408766,1749093051435,-566.31663478,0.00021918,2]
[364408768,1749093051445,-500.0,0.00021918,2]
[364408769,1749093051455,-500.0,0.00021918,2]
[364408771,1749093051464,-500.0,0.00021918,2]
[364408773,1749093051474,-500.0,0.00021918,2]
[364408775,1749093051486,-500.0,0.00021918,2]
[364408777,1749093051496,-500.0,0.00021918,2]
[364408779,1749093051506,-500.0,0.00021918,2]
[364408781,1749093051515,-500.0,0.00021918,2]
[364408782,1749093051525,-500.0,0.00021918,2]
[364408784,1749093051535,-500.0,0.00021918,2]
[364408786,1749093051544,-500.0,0.00021918,2]
[364408788,1749093051553,-500.0,0.00021918,2]
[364408790,1749093051564,-500.0,0.00021918,2]
[364408792,1749093051573,-500.0,0.00021918,2]
[364408793,1749093051583,-500.0,0.00021918,2]
[364408795,1749093051592,-631.78977882,0.00021918,2]
[364408797,1749093051602,-500.0,0.00021918,2]
[364408799,1749093051612,-500.0,0.00021918,2]
[364408801,1749093051621,-500.0,0.00021918,2]
[364408802,1749093051630,-500.0,0.00021918,2]
[364408804,1749093051640,-500.0,0.00021918,2]
[364408806,1749093051650,-1009.59635121,0.0002198,2]
[364408808,1749093051660,-1500.0,0.00021982,2]
[364408810,1749093051670,-501.4219546,0.00021982,2]
[364408812,1749093051679,-1800.0,0.00021982,2]
[364408814,1749093051688,-188.0,0.00022,7]
[364408816,1749093051697,-188.0,0.00022,10]
[364408817,1749093051706,-1088.01840654,0.00022,7]
[364408819,1749093051715,-26659.4,0.00022,2]
[364408821,1749093051725,-2214.47,0.00022,7]
[364408823,1749093051734,-151.0,0.00022,7]
[364408825,1749093051743,-151.0,0.00022,7]
[364408827,1749093051752,-151.0,0.00022,7]
[364408829,1749093051761,-842.5625,0.00022,7]
[364408831,1749093051770,-270.0,0.00022,2]
[364408832,1749093051780,-1915.2023074,0.00022003,6]
[364408834,1749093051790,-1030.4,0.00022065,2]
[364408836,1749093051800,-1134.6,0.00022065,2]
[364408838,1749093051809,-904.68,0.00022065,2]
[364408840,1749093051818,-1584.37,0.00022065,2]
[364408841,1749093051827,-1438.38,0.00022073,2]
[364408843,1749093051836,-440.0,0.00022073,2]
[364408845,1749093051845,-581.05,0.00022073,2]
[364408847,1749093051854,-656.45,0.00022073,2]
[364408849,1749093051864,-440.0,0.00022074,2]
[364408851,1749093051873,-400.0,0.00022075,2]
[364408853,1749093051882,-576.87,0.00022075,2]
[364408855,1749093051893,-824.46,0.00022075,2]
[364408856,1749093051902,-734.22,0.00022075,2]
[364408858,1749093051911,-554.01,0.00022075,2]
[364408860,1749093051921,-458.65,0.00022075,2]
[364408862,1749093051930,-868.47,0.00022075,2]
[364408864,1749093051939,-1311.49,0.00022075,2]
[364408866,1749093051948,-1897.17,0.00022075,2]
[364408868,1749093051958,-1861.05,0.000221,7]
[364408870,1749093051970,-212.94059491,0.000221,7]
[364408872,1749093051981,-501.0324746,0.00022101,2]
[364408873,1749093051990,-160.0,0.00022152,4]
[364408875,1749093051999,-201.92208286,0.00022191,30]
[364408877,1749093052009,-270.0,0.00022192,7]
[364408879,1749093052018,-1500.0,0.00022196,2]
[364408881,1749093052027,-151.0,0.000222,10]
[364408883,1749093052036,-842.5625,0.000222,3]
[364408885,1749093052046,-151.0,0.00022207,7]
[364408887,1749093052055,-1500.0,0.00022207,2]
[364408889,1749093052066,-1500.0,0.00022207,2]
[364408891,1749093052076,-1915.2023074,0.00022245,6]
[364408892,1749093052087,-1700.0,0.0002226,2]
[364408894,1749093052096,-369.8192453,0.00022329,2]
[364408896,1749093052105,-364.646625,0.00022329,2]
[364408898,1749093052114,-364.646625,0.00022329,2]
[364408900,1749093052123,-364.646625,0.00022329,2]
[364408902,1749093052132,-1030.4,0.00022339,2]
[364408904,1749093052141,-1134.6,0.00022339,2]
[364408906,1749093052150,-904.68,0.00022339,2]
[364408907,1749093052160,-1584.37,0.00022339,2]
[364408909,1749093052169,-1438.38,0.00022347,2]
[364408911,1749093052178,-440.0,0.00022347,2]
[364408913,1749093052188,-581.05,0.00022347,2]
[364408915,1749093052197,-656.45,0.00022347,2]
[364408917,1749093052206,-440.0,0.00022348,2]
[364408919,1749093052216,-400.0,0.00022349,2]
[364408921,1749093052224,-576.87,0.00022349,2]
[364408923,1749093052234,-824.46,0.00022349,2]
[364408924,1749093052243,-734.22,0.00022349,2]
[364408926,1749093052252,-554.01,0.00022349,2]
[364408928,1749093052262,-458.65,0.00022349,2]
[364408930,1749093052272,-868.47,0.00022349,2]
[364408932,1749093052281,-1311.49,0.00022349,2]
[364408934,1749093052291,-1897.17,0.00022349,2]
[364408936,1749093052300,-5000.0,0.00022408,2]
[364408938,1749093052310,-846.85088927,0.00022437,2]
[364408939,1749093052319,-1500.0,0.00022437,2]
[364408941,1749093052329,-503.00602574,0.00022437,2]
[364408943,1749093052338,-1500.0,0.00022437,2]
[364408945,1749093052347,-505.67107245,0.00022465,2]
[364408947,1749093052357,-1915.2023074,0.00022486,7]
[364408949,1749093052366,-1611.75439526,0.00022521,2]
[364408951,1749093052376,-2000.0,0.0002253,2]
[364408953,1749093052385,-2400.0,0.0002253,2]
[364408955,1749093052394,-616.008914,0.0002254,3]
[364408957,1749093052404,-423595.89685888,0.000226,2]
[364408958,1749093052414,-346.73427049,0.000226,2]
[364408960,1749093052423,-300.34151,0.00022603,2]
[364408962,1749093052433,-1030.4,0.00022613,2]
[364408964,1749093052442,-1134.6,0.00022613,2]
[364408973,1749093052540,-904.68,0.00022613,2]
[364408975,1749093052551,-1584.37,0.00022613,2]
[364408977,1749093052563,-1438.38,0.00022621,2]
[364408979,1749093052780,-440.0,0.00022621,2]
[364408981,1749093052791,-151.855658,0.00022621,7]
[364408983,1749093052802,-200.142116,0.00022621,7]
[364408985,1749093052812,-279.167478,0.00022621,7]
[364408987,1749093052822,-656.45,0.00022621,2]
[364408989,1749093052831,-151.0,0.00022621,7]
[364408991,1749093052841,-440.0,0.00022622,2]
[364408992,1749093052850,-400.0,0.00022623,2]
[364408994,1749093052859,-151.0,0.00022623,7]
[364408996,1749093052868,-576.87,0.00022623,2]
[364408998,1749093052878,-824.46,0.00022623,2]
[364409000,1749093052887,-734.22,0.00022623,2]
[364409002,1749093052896,-554.01,0.00022623,2]
[364409004,1749093052907,-458.65,0.00022623,2]
[364409005,1749093052916,-868.47,0.00022623,2]
[364409007,1749093052926,-1311.49,0.00022623,2]
[364409009,1749093052935,-1897.17,0.00022623,2]
[364409011,1749093052944,-167.078038,0.00022624,7]
[364409013,1749093052954,-167.078038,0.00022624,7]
[364409015,1749093052964,-151.0,0.00022624,2]
[364409017,1749093052973,-329.162636,0.00022624,7]
[364409019,1749093052983,-329.162636,0.00022624,7]
[364409021,1749093052992,-215.0738,0.00022681,2]
[364409023,1749093053002,-160.0,0.000227,3]
[364409025,1749093053011,-150.184,0.00022708,2]
[364409026,1749093053020,-160.0,0.00022713,5]
[364409028,1749093053029,-299.27088237,0.00022713,5]
[364409030,1749093053039,-1915.2023074,0.00022728,7]
[364409032,1749093053048,-2000.0,0.00022744,2]
[364409034,1749093053058,-627.0144501,0.00022755,2]
[364409036,1749093053067,-550.20225536,0.00022755,2]
[364409038,1749093053076,-190.814021,0.00022815,7]
[364409040,1749093053085,-151.0,0.00022815,7]
[364409041,1749093053094,-150.17,0.00022815,2]
[364409043,1749093053102,-965.676,0.00022815,2]
[364409045,1749093053111,-709.28,0.00022815,2]
[364409047,1749093053122,-2225.0,0.00022815,2]
[364409049,1749093053131,-1400.000001,0.0002288,2]
[364409051,1749093053141,-1030.4,0.00022887,2]
[364409053,1749093053150,-1134.6,0.00022887,2]
[364409055,1749093053169,-904.68,0.00022887,2]
[364409057,1749093053178,-1584.37,0.00022887,2]
[364409059,1749093053187,-1438.38,0.00022895,2]
[364409061,1749093053197,-440.0,0.00022895,2]
[364409063,1749093053207,-656.45,0.00022895,2]
[364409065,1749093053217,-523.61593587,0.00022896,2]
[364409067,1749093053226,-323.12708074,0.00022897,2]
[364409069,1749093053236,-576.87,0.00022897,2]
[364409071,1749093053245,-824.46,0.00022897,2]
[364409073,1749093053254,-734.22,0.00022897,2]
[364409075,1749093053264,-554.01,0.00022897,2]
[364409077,1749093053274,-458.65,0.00022897,2]
[364409079,1749093053284,-868.47,0.00022897,2]
[364409081,1749093053293,-1311.49,0.00022897,2]
[364409082,1749093053302,-1897.17,0.00022897,2]
[364409084,1749093053312,-188.9813433,0.000229,2]
[364409086,1749093053321,-5000.0,0.00022956,2]
[364409088,1749093053331,-1915.2023074,0.00022969,8]
[364409090,1749093053342,-2000.0,0.00022985,2]
[364409092,1749093053351,-189.58634775,0.00022985,2]
[364409094,1749093053360,-5724.35703818,0.00023,20]
[364409096,1749093053369,-8039.97968586,0.00023,3]
[364409098,1749093053379,-160.0,0.00023,3]
[364409100,1749093053389,-423.7637613,0.00023,3]
[364409102,1749093053398,-212.94059491,0.00023,3]
[364409104,1749093053407,-160.0,0.00023,3]
[364409105,1749093053416,-160.0,0.00023,3]
[364409107,1749093053425,-968.6269777,0.00023,2]
[364409248,1749093212110,700.0,0.0002334,120]
[364409249,1749093212567,700.0,0.0002333,120]
[364409250,1749093213008,700.0,0.0002332,120]
[364409251,1749093213466,700.0,0.0002414,120]
[364409252,1749093213916,700.0,0.0002413,120]
[364409253,1749093214383,700.0,0.0002412,120]
[364409254,1749093214846,700.0,0.0002414,120]
[364409255,1749093215292,700.0,0.0002413,120]
[364409256,1749093215740,700.0,0.00024226,120]
[364409257,1749093216284,705.61,0.00024216,120]
[364409270,1749093832503,252.868691,0.00013699,2]
[364409443,1749094231709,-1750.0,0.00016408,2]
[364409444,1749094231721,-1885.913192,0.00016408,2]
[364409445,1749094231730,-208.3745798,0.0001641,2]
[364409447,1749094231739,-300.0,0.00017404,2]
[364409449,1749094231748,-261.0,0.00017405,2]
[364409451,1749094231757,-300.0,0.00017405,2]
[364409453,1749094231766,-300.0,0.00017405,2]
[364409455,1749094231775,-1200.0,0.00017405,2]
[364409457,1749094231784,-455.67172874,0.00017406,2]
[364409459,1749094231793,-440.0,0.00017406,2]
[364409461,1749094231802,-440.0,0.00017406,2]
[364409463,1749094231811,-440.0,0.00017406,2]
[364409465,1749094231820,-440.0,0.00017406,2]
[364409467,1749094231829,-440.0,0.00017406,2]
[364409469,1749094231838,-440.0,0.00017406,2]
[364409471,1749094231847,-440.0,0.00017406,2]
[364409474,1749094231856,-440.0,0.00017406,2]
[364409477,1749094231865,-440.0,0.00017406,2]
[364409480,1749094231876,-430.0,0.00017406,2]
[364409482,1749094231885,-440.0,0.00017406,2]
[364409485,1749094231894,-705.5,0.00017406,2]
[364409487,1749094231903,-440.0,0.00017406,2]
[364409491,1749094231912,-260.0,0.00017406,2]
[364409493,1749094231922,-333.33572822,0.00017406,2]
[364409497,1749094231931,-440.0,0.00017406,2]
[364409500,1749094231941,-440.0,0.00017406,2]
[364409502,1749094231951,-440.0,0.00017406,2]
[364409504,1749094231960,-448.48755791,0.00017406,2]
[364409507,1749094231970,-208.56650034,0.00017406,2]
[364409510,1749094231979,-430.0,0.00017406,2]
[364409513,1749094231987,-451.98657689,0.00017406,2]
[364409515,1749094231996,-430.0,0.00017407,2]
[364409517,1749094232005,-430.0,0.00017407,2]
[364409519,1749094232014,-265.07714555,0.00017407,2]
[364409521,1749094232023,-440.0,0.00017412,2]
[364409523,1749094232033,-530.5150378,0.00017412,2]
[364409525,1749094232042,-440.0,0.00017412,2]
[364409527,1749094232051,-453.68,0.00017412,2]
[364409529,1749094232060,-440.0,0.00017412,2]
[364409530,1749094232069,-430.0,0.00017413,2]
[364409531,1749094232079,-435.93408426,0.00017413,2]
[364409532,1749094232088,-444.73064392,0.00017413,2]
[364409533,1749094232097,-439.45147197,0.00017413,2]
[364409534,1749094232106,-449.55413252,0.00017413,2]
[364409535,1749094232114,-444.63629877,0.00017413,2]
[364409536,1749094232123,-430.0,0.00017413,2]
[364409537,1749094232132,-430.0,0.00017413,2]
[364409538,1749094232141,-430.0,0.00017413,2]
[364409539,1749094232150,-457.11037825,0.00017413,2]
[364409540,1749094232159,-444.30203634,0.00017413,2]
[364409541,1749094232168,-430.0,0.00017413,2]
[364409542,1749094232177,-430.0,0.00017413,2]
[364409543,1749094232186,-430.0,0.00017413,2]
[364409544,1749094232195,-430.0,0.00017413,2]
[364409545,1749094232204,-430.0,0.00017413,2]
[364409546,1749094232213,-275.00975943,0.00017413,2]
[364409547,1749094232222,-430.0,0.00017413,2]
[364409548,1749094232231,-430.0,0.00017413,2]
[364409549,1749094232240,-430.0,0.00017413,2]
[364409550,1749094232249,-430.0,0.00017413,2]
[364409551,1749094232259,-440.16378127,0.00017413,2]
[364409552,1749094232268,-430.0,0.00017413,2]
[364409553,1749094232277,-438.70831734,0.00017413,2]
[364409554,1749094232286,-430.0,0.00017413,2]
[364409555,1749094232295,-430.0,0.00017413,2]
[364409556,1749094232304,-500.0,0.00017413,2]
[364409557,1749094232314,-438.44127338,0.00017413,2]
[364409558,1749094232323,-437.13191541,0.00017413,2]
[364409559,1749094232332,-430.0,0.00017413,2]
[364409560,1749094232342,-430.0,0.00017413,2]
[364409561,1749094232351,-430.0,0.00017413,2]
[364409562,1749094232360,-430.0,0.00017413,2]
[364409563,1749094232369,-436.01369669,0.00017413,2]
[364409564,1749094232379,-442.2848589,0.00017413,2]
[364409565,1749094232389,-473.63753092,0.00017413,2]
[364409566,1749094232399,-436.95411518,0.00017413,2]
[364409567,1749094232408,-430.0,0.00017413,2]
[364409569,1749094232417,-430.0,0.00017413,2]
[364409571,1749094232426,-436.10618459,0.00017413,2]
[364409573,1749094232435,-292.47471781,0.00017413,2]
[364409575,1749094232445,-436.98902445,0.00017413,2]
[364409577,1749094232454,-436.10138319,0.00017413,2]
[364409579,1749094232463,-430.0,0.00017413,2]
[364409581,1749094232473,-430.0,0.00017413,2]
[364409583,1749094232482,-185.76972603,0.00017413,2]
[364409585,1749094232491,-440.0,0.00017413,2]
[364409587,1749094232501,-440.0,0.00017413,2]
[364409589,1749094232510,-440.0,0.00017413,2]
[364409591,1749094232519,-430.0,0.00017413,2]
[364409593,1749094232529,-690.96,0.00017413,2]
[364409595,1749094232538,-440.0,0.00017413,2]
[364409597,1749094232547,-430.0,0.00017413,2]
[364409599,1749094232556,-440.0,0.00017414,2]
[364409601,1749094232565,-425.65379858,0.00017414,2]
[364409603,1749094232575,-440.0,0.00017414,2]
[364409605,1749094232584,-440.0,0.00017414,2]
[364409607,1749094232593,-440.0,0.00017414,2]
[364409609,1749094232602,-440.0,0.00017414,2]
[364409611,1749094232611,-437.94082265,0.00017416,2]
[364409613,1749094232620,-430.0,0.00017416,2]
[364409615,1749094232630,-440.0,0.0001768,2]
[364409629,1749094232756,-440.0,0.0001768,2]
[364409631,1749094232766,-705.5,0.0001768,2]
[364409633,1749094232775,-482.80337238,0.0001768,2]
[364409635,1749094232784,-440.0,0.0001768,2]
[364409637,1749094232793,-440.0,0.0001768,2]
[364409639,1749094232803,-440.0,0.00017686,2]
[364409641,1749094232812,-440.0,0.00017686,2]
[364409643,1749094232821,-453.68,0.00017686,2]
[364409645,1749094232830,-440.0,0.00017686,2]
[364409647,1749094232839,-440.0,0.00017687,2]
[364409649,1749094232848,-440.0,0.00017687,2]
[364409651,1749094232858,-440.0,0.00017687,2]
[364409653,1749094232867,-690.96,0.00017687,2]
[364409655,1749094232879,-440.0,0.00017688,2]
[364409657,1749094232888,-440.0,0.00017688,2]
[364409659,1749094232897,-440.0,0.00017688,2]
[364409661,1749094232907,-440.0,0.00017688,2]
[364409663,1749094232915,-440.0,0.00017688,2]
[364409665,1749094232925,-151.0,0.00017943,2]
[364409667,1749094232934,-151.0,0.00017943,2]
[364409669,1749094232943,-151.0,0.00017943,2]
[364409671,1749094232954,-151.0,0.00017943,2]
[364409672,1749094232963,-151.0,0.00017943,2]
[364409674,1749094232972,-151.0,0.00017943,2]
[364409675,1749094232981,-151.0,0.00017943,2]
[364409676,1749094232991,-151.0,0.00017943,2]
[364409677,1749094233001,-151.0,0.00017943,2]
[364409678,1749094233010,-151.0,0.00017943,2]
[364409679,1749094233019,-151.0,0.00017943,2]
[364409680,1749094233028,-151.0,0.00017943,2]
[364409681,1749094233037,-151.0,0.00017943,2]
[364409682,1749094233046,-151.0,0.00017943,2]
[364409683,1749094233055,-206.41985009,0.00017943,2]
[364409684,1749094233064,-430.0,0.00017954,2]
[364409685,1749094233074,-442.68032576,0.00017954,2]
[364409686,1749094233083,-433.28200542,0.00017954,2]
[364409687,1749094233092,-441.73447325,0.00017954,2]
[364409688,1749094233102,-430.0,0.00017954,2]
[364409689,1749094233112,-521.23722991,0.00017954,2]
[364409690,1749094233121,-436.61533083,0.00017954,2]
[364409691,1749094233130,-441.95636161,0.00017954,2]
[364409692,1749094233139,-430.0,0.00017954,2]
[364409693,1749094233149,-430.0,0.00017954,2]
[364409694,1749094233158,-473.11208452,0.00017954,2]
[364409695,1749094233167,-443.08937843,0.00017954,2]
[364409696,1749094233176,-430.0,0.00017954,2]
[364409697,1749094233186,-443.61368992,0.00017954,2]
[364409698,1749094233195,-471.68886244,0.00017954,2]
[364409699,1749094233205,-449.80827875,0.00017954,2]
[364409700,1749094233214,-442.12365908,0.00017954,2]
[364409701,1749094233223,-430.0,0.00017954,2]
[364409702,1749094233233,-298.2784253,0.00017954,2]
[364409703,1749094233242,-437.49142693,0.00017954,2]
[364409704,1749094233251,-214.26937852,0.00017954,2]
[364409705,1749094233261,-303.48287227,0.00017954,2]
[364409706,1749094233271,-442.80181583,0.00017954,2]
[364409707,1749094233280,-371.07075286,0.00017954,2]
[364409708,1749094233290,-430.0,0.00017954,2]
[364409709,1749094233299,-423.40622762,0.00017954,2]
[364409710,1749094233309,-430.0,0.00017954,2]
[364409711,1749094233319,-526.58863212,0.00017954,2]
[364409712,1749094233328,-414.22383937,0.00017954,2]
[364409713,1749094233338,-437.7812393,0.00017954,2]
[364409714,1749094233348,-434.23572145,0.00017954,2]
[364409715,1749094233357,-442.63761871,0.00017954,2]
[364409716,1749094233366,-430.0,0.00017954,2]
[364409717,1749094233376,-430.0,0.00017954,2]
[364409718,1749094233385,-430.0,0.00017954,2]
[364409719,1749094233395,-430.0,0.00017954,2]
[364409720,1749094233405,-499.62662638,0.00017954,2]
[364409721,1749094233415,-430.0,0.00017954,2]
[364409722,1749094233425,-430.0,0.00017954,2]
[364409723,1749094233436,-430.0,0.00017954,2]
[364409724,1749094233446,-268.23077591,0.00017954,2]
[364409725,1749094233455,-497.71961472,0.00017954,2]
[364409726,1749094233465,-434.22449369,0.00017954,2]
[364409727,1749094233474,-440.0,0.00017954,2]
[364409728,1749094233483,-430.0,0.00017954,2]
[364409729,1749094233492,-440.0,0.00017954,2]
[364409730,1749094233502,-431.55075061,0.00017954,2]
[364409731,1749094233511,-440.0,0.00017954,2]
[364409732,1749094233521,-441.18271004,0.00017954,2]
[364409733,1749094233530,-440.99918736,0.00017954,2]
[364409734,1749094233540,-440.0,0.00017954,2]
[364409735,1749094233549,-430.0,0.00017954,2]
[364409736,1749094233558,-440.0,0.00017954,2]
[364409737,1749094233567,-437.6898299,0.00017954,2]
[364409738,1749094233577,-434.49710221,0.00017954,2]
[364409739,1749094233586,-440.0,0.00017954,2]
[364409740,1749094233595,-432.13181176,0.00017954,2]
[364409741,1749094233605,-513.44863772,0.00017954,2]
[364409742,1749094233614,-439.0382,0.00017954,2]
[364409743,1749094233624,-233.60621963,0.00017954,2]
[364409744,1749094233633,-431.87444534,0.00017954,2]
[364409745,1749094233642,-440.0,0.00017954,2]
[364409746,1749094233651,-440.0,0.00017954,2]
[364409747,1749094233660,-431.61489223,0.00017954,2]
[364409748,1749094233670,-440.0,0.00017954,2]
[364409749,1749094233681,-431.74045999,0.00017954,2]
[364409750,1749094233691,-440.0,0.00017954,2]
[364409751,1749094233700,-430.0,0.00017954,2]
[364409752,1749094233709,-440.0,0.00017954,2]
[364409753,1749094233719,-440.0,0.00017954,2]
[364409754,1749094233729,-403.14494317,0.00017954,2]
[364409755,1749094233737,-440.0,0.00017954,2]